fUSD/lending_fUSD_20250312
["ID","MTS","AMOUNT","RATE_DAILY","PERIOD"]
[355970831,1741744239707,-507.63962008,9.998e-05,2]
[355970832,1741744239718,-500.0,9.998e-05,2]
[355970833,1741744239728,-500.0,9.998e-05,2]
[355970834,1741744239741,-558.31268842,9.998e-05,2]
[355970835,1741744239751,-500.0,9.998e-05,2]
[355970836,1741744239762,-500.0,9.998e-05,2]
[355970837,1741744239773,-500.0,9.998e-05,2]
[355970838,1741744239783,-500.0,9.998e-05,2]
[355970839,1741744239794,-270.76700611,9.998e-05,2]
[355970840,1741744239809,-500.0,9.998e-05,2]
[355970841,1741744239820,-508.05322302,9.998e-05,2]
[355970842,1741744239830,-500.0,9.998e-05,2]
[355970843,1741744239842,-500.0,9.998e-05,2]
[355970844,1741744239854,-500.0,9.998e-05,2]
[355970845,1741744239865,-500.0,9.998e-05,2]
[355970846,1741744239876,-500.0,9.998e-05,2]
[355970847,1741744239887,-626.52,9.998e-05,2]
[355970848,1741744239900,-500.0,9.998e-05,2]
[355970849,1741744239912,-500.0,9.998e-05,2]
[355970850,1741744239923,-507.52343162,9.998e-05,2]
[355970851,1741744239935,-550.11,9.998e-05,2]
[355970852,1741744239945,-500.0,9.998e-05,2]
[355970853,1741744239956,-500.0,9.998e-05,2]
[355970854,1741744239967,-500.0,9.998e-05,2]
[355970855,1741744239978,-500.0,9.998e-05,2]
[355970856,1741744239989,-500.0,9.998e-05,2]
[355970857,1741744240000,-500.0,9.998e-05,2]
[355970858,1741744240011,-500.0,9.998e-05,2]
[355970860,1741744240023,-500.0,9.998e-05,2]
[355970862,1741744240035,-835.49,9.998e-05,2]
[355970864,1741744240046,-561.19,9.998e-05,2]
[355970865,1741744240058,-506.72920254,9.998e-05,2]
[355970866,1741744240069,-500.0,9.998e-05,2]
[355970867,1741744240081,-506.94496295,9.998e-05,2]
[355970868,1741744240092,-500.0,9.998e-05,2]
[355970869,1741744240103,-500.0,9.998e-05,2]
[355970870,1741744240114,-678.42,9.998e-05,2]
[355970871,1741744240125,-633.4,9.998e-05,2]
[355970872,1741744240137,-504.11471343,9.998e-05,2]
[355970873,1741744240148,-507.49631799,9.998e-05,2]
[355970874,1741744240159,-500.0,9.998e-05,2]
[355970875,1741744240171,-500.0,9.998e-05,2]
[355970876,1741744240182,-506.38138709,9.998e-05,2]
[355970877,1741744240194,-500.0,9.998e-05,2]
[355970878,1741744240205,-545.79,9.998e-05,2]
[355970879,1741744240216,-751.92,9.998e-05,2]
[355970880,1741744240227,-358.87826178,9.998e-05,2]
[355970881,1741744240238,-500.0,9.998e-05,2]
[355970882,1741744240249,-896.62,9.998e-05,2]
[355970883,1741744240260,-506.26943391,9.998e-05,2]
[355970884,1741744240271,-500.0,9.998e-05,2]
[355970885,1741744240283,-500.0,9.998e-05,2]
[355970886,1741744240294,-597.11,9.998e-05,2]
[355970887,1741744240305,-505.47317578,9.998e-05,2]
[355970888,1741744240316,-504.53251654,9.998e-05,2]
[355970889,1741744240327,-503.38971705,9.998e-05,2]
[355970890,1741744240338,-500.0,9.998e-05,2]
[355970891,1741744240350,-500.0,9.998e-05,2]
[355970892,1741744240361,-500.0,9.998e-05,2]
[355970893,1741744240372,-509.08003516,9.998e-05,2]
[355970894,1741744240382,-533.81527939,9.998e-05,2]
[355970895,1741744240393,-500.0,9.998e-05,2]
[355970896,1741744240403,-500.0,9.998e-05,2]
[355970897,1741744240414,-500.0,9.998e-05,2]
[355970898,1741744240425,-500.0,9.998e-05,2]
[355970899,1741744240436,-500.0,9.998e-05,2]
[355970900,1741744240447,-500.0,9.998e-05,2]
[355970901,1741744240458,-500.0,9.998e-05,2]
[355970902,1741744240480,-500.0,9.998e-05,2]
[355970903,1741744240493,-500.0,9.998e-05,2]
[355970904,1741744240504,-500.0,9.998e-05,2]
[355970905,1741744240516,-753.35,9.998e-05,2]
[355970906,1741744240526,-507.92,9.998e-05,2]
[355970907,1741744240537,-549.3,9.998e-05,2]
[355970908,1741744240548,-500.0,9.998e-05,2]
[355970909,1741744240559,-500.0,9.998e-05,2]
[355970910,1741744240571,-657.32,9.998e-05,2]
[355970911,1741744240582,-506.19678866,9.998e-05,2]
[355970912,1741744240593,-500.0,9.998e-05,2]
[355970913,1741744240603,-500.0,9.998e-05,2]
[355970914,1741744240615,-500.0,9.998e-05,2]
[355970915,1741744240626,-500.0,9.998e-05,2]
[355970916,1741744240637,-508.19094467,9.998e-05,2]
[355970917,1741744240648,-500.0,9.998e-05,2]
[355970918,1741744240659,-500.0,9.998e-05,2]
[355970919,1741744240671,-1085.26,9.998e-05,2]
[355970920,1741744240682,-500.0,9.998e-05,2]
[355970921,1741744240693,-242.15926596,9.998e-05,2]
[355970922,1741744240704,-500.0,9.998e-05,2]
[355970923,1741744240715,-506.03715779,9.998e-05,2]
[355970924,1741744240726,-500.0,9.998e-05,2]
[355970925,1741744240737,-500.0,9.998e-05,2]
[355970926,1741744240747,-500.0,9.998e-05,2]
[355970927,1741744240758,-500.0,9.998e-05,2]
[355970928,1741744240769,-500.0,9.998e-05,2]
[355970929,1741744240780,-500.0,9.998e-05,2]
[355970930,1741744240790,-500.0,9.998e-05,2]
[355970931,1741744240802,-500.0,9.998e-05,2]
[355970932,1741744240816,-676.21,9.998e-05,2]
[355970933,1741744240827,-500.0,9.998e-05,2]
[355970934,1741744240837,-500.0,9.998e-05,2]
[355970935,1741744240849,-973.63,9.998e-05,2]
[355970936,1741744240860,-500.0,9.998e-05,2]
[355970937,1741744240870,-555.03,9.998e-05,2]
[355970938,1741744240881,-1889.04,9.998e-05,2]
[355970939,1741744240891,-500.0,9.998e-05,2]
[355970940,1741744240902,-892.1,9.998e-05,2]
[355970941,1741744240913,-500.0,9.998e-05,2]
[355970942,1741744240923,-500.0,9.998e-05,2]
[355970943,1741744240934,-500.0,9.998e-05,2]
[355970944,1741744240945,-898.65,9.998e-05,2]
[355970945,1741744240955,-500.0,9.998e-05,2]
[355970946,1741744240965,-500.0,9.998e-05,2]
[355970947,1741744240977,-500.0,9.998e-05,2]
[355970948,1741744240988,-500.0,9.998e-05,2]
[355970949,1741744240998,-500.0,9.998e-05,2]
[355970950,1741744241011,-500.0,9.998e-05,2]
[355970951,1741744241021,-896.23,9.998e-05,2]
[355970952,1741744241032,-500.0,9.998e-05,2]
[355970953,1741744241042,-577.97,9.998e-05,2]
[355970954,1741744241053,-507.22073292,9.998e-05,2]
[355970955,1741744241063,-500.0,9.998e-05,2]
[355970956,1741744241074,-1320.27,9.998e-05,2]
[355970957,1741744241084,-636.28666654,9.998e-05,2]
[355970958,1741744241095,-500.0,9.998e-05,2]
[355970959,1741744241105,-537.39,9.998e-05,2]
[355970960,1741744241116,-500.0,9.998e-05,2]
[355970961,1741744241126,-500.0,9.998e-05,2]
[355970962,1741744241137,-500.0,9.998e-05,2]
[355970963,1741744241148,-598.78,9.998e-05,2]
[355970964,1741744241159,-500.0,9.998e-05,2]
[355970965,1741744241170,-500.0,9.998e-05,2]
[355970966,1741744241181,-500.0,9.998e-05,2]
[355970967,1741744241192,-500.0,9.998e-05,2]
[355970968,1741744241203,-644.37,9.998e-05,2]
[355970969,1741744241214,-535.3,9.998e-05,2]
[355970970,1741744241225,-500.0,9.998e-05,2]
[355970971,1741744241235,-500.0,9.998e-05,2]
[355970972,1741744241248,-500.0,9.998e-05,2]
[355970973,1741744241258,-590.80655776,9.999e-05,2]
[355970974,1741744241270,-500.0,9.999e-05,2]
[355970975,1741744241281,-500.0,9.999e-05,2]
[355970976,1741744241291,-649.56,9.999e-05,2]
[355970977,1741744241301,-500.0,9.999e-05,2]
[355970978,1741744241311,-500.0,9.999e-05,2]
[355970979,1741744241322,-529.73,9.999e-05,2]
[355970980,1741744241332,-500.0,9.999e-05,2]
[355970981,1741744241342,-718.24,9.999e-05,2]
[355970982,1741744241353,-500.0,9.999e-05,2]
[355970983,1741744241363,-199.91773697,9.999e-05,2]
[355970984,1741744241373,-500.0,9.999e-05,2]
[355970985,1741744241383,-500.0,9.999e-05,2]
[355970986,1741744241393,-500.0,9.999e-05,2]
[355970987,1741744241403,-500.0,9.999e-05,2]
[355970988,1741744241412,-779.0,9.999e-05,2]
[355970989,1741744241422,-500.0,9.999e-05,2]
[355970990,1741744241432,-500.0,9.999e-05,2]
[355970991,1741744241442,-668.15,9.999e-05,2]
[355970992,1741744241451,-593.7,9.999e-05,2]
[355970993,1741744241461,-500.0,9.999e-05,2]
[355970994,1741744241471,-500.0,9.999e-05,2]
[355970995,1741744241481,-864.44,9.999e-05,2]
[355970996,1741744241491,-763.2,9.999e-05,2]
[355970997,1741744241501,-664.96,9.999e-05,2]
[355970998,1741744241511,-262.7841287,9.999e-05,2]
[355970999,1741744241521,-500.0,9.999e-05,2]
[355971000,1741744241531,-1349.33,9.999e-05,2]
[355971001,1741744241541,-589.55,9.999e-05,2]
[355971002,1741744241551,-500.0,9.999e-05,2]
[355971003,1741744241561,-500.0,9.999e-05,2]
[355971004,1741744241571,-577.42,9.999e-05,2]
[355971005,1741744241581,-500.0,9.999e-05,2]
[355971006,1741744241591,-809.08,9.999e-05,2]
[355971007,1741744241601,-499.63509983,9.999e-05,2]
[355971008,1741744241611,-501.78901378,9.999e-05,2]
[355971009,1741744241621,-500.0,9.999e-05,2]
[355971010,1741744241631,-551.74,9.999e-05,2]
[355971011,1741744241641,-610.72,9.999e-05,2]
[355971012,1741744241650,-500.0,9.999e-05,2]
[355971013,1741744241660,-638.98,9.999e-05,2]
[355971014,1741744241670,-772.91,9.999e-05,2]
[355971015,1741744241680,-1183.0,9.999e-05,2]
[355971016,1741744241690,-1133.53,9.999e-05,2]
[355971017,1741744241700,-500.0,9.999e-05,2]
[355971018,1741744241710,-561.24,9.999e-05,2]
[355971019,1741744241719,-500.0,9.999e-05,2]
[355971020,1741744241729,-504.16,9.999e-05,2]
[355971021,1741744241739,-500.0,9.999e-05,2]
[355971022,1741744241749,-554.85,9.999e-05,2]
[355971023,1741744241759,-360.51806831,9.999e-05,2]
[355971024,1741744241770,-794.05,9.999e-05,2]
[355971025,1741744241780,-500.0,9.999e-05,2]
[355971026,1741744241790,-500.0,9.999e-05,2]
[355971027,1741744241800,-504.56712891,9.999e-05,2]
[355971028,1741744241812,-500.0,9.999e-05,2]
[355971029,1741744241822,-500.0,9.999e-05,2]
[355971030,1741744241832,-500.0,9.999e-05,2]
[355971031,1741744241842,-574.95,9.999e-05,2]
[355971032,1741744242257,-159.73661542,9.999e-05,2]
[355971033,1741744242290,-1000.0,0.0001,2]
[355971034,1741744242308,-24559.24021289,0.0001,2]
[355971035,1741744242323,-72452.80879156,0.0001,2]
[355971048,1741744242659,-498.014838,0.0001,2]
[355971049,1741744242671,-983.76745006,0.0001,2]
[355971050,1741744242682,-925.1,0.0001,2]
[355971051,1741744242706,-55394.87623502,0.0001,2]
[355971052,1741744242717,-11037.36803148,0.0001,2]
[355971053,1741744242727,-5748.33832978,0.0001,2]
[355971054,1741744242738,-4106.6159608,0.0001,2]
[355971055,1741744242750,-1374.5550006,0.0001,2]
[355971056,1741744242761,-9712.4213032,0.0001,2]
[355971057,1741744242779,-689.32368187,0.0001,2]
[355971058,1741744242789,-2084.42851747,0.0001,2]
[355971059,1741744242801,-1235.0,0.0001,2]
[355971060,1741744242820,-58645.77157298,0.0001,2]
[355971061,1741744243079,-418.98845573,9.998e-05,2]
[355971062,1741744243090,-81.01154427,9.998e-05,2]
[355971064,1741744243100,-5473.12845573,0.0001,2]
[355971068,1741744243118,-655.28295906,0.0001,2]
[355971070,1741744243228,-1607860.14085294,0.0001,2]
[355971071,1741744243239,-438.05390023,0.0001,2]
[355971072,1741744243251,-5001.0461434,0.0001,2]
[355971073,1741744243353,-8400.0,0.0001,2]
[355971074,1741744243595,-500.0,9.998e-05,2]
[355971075,1741744243604,-500.0,9.998e-05,2]
[355971076,1741744243614,-30222.81431666,0.0001,2]
[355971077,1741744243625,-575.84999999,0.0001,2]
[355971078,1741744243636,-4856.06456746,0.0001,2]
[355971084,1741744245557,-500.0,9.998e-05,2]
[355971085,1741744245567,-5097.82971983,0.0001,2]
[355971086,1741744245579,-10133.0,0.0001,2]
[355971087,1741744245640,-376.28254742,0.0001,2]
[355971088,1741744245722,-1237.2,0.0001,2]
[355971089,1741744245734,-163430.53105852,0.0001,2]
[355971090,1741744245746,-639.723,0.0001,2]
[355971091,1741744245757,-252.71462698,0.0001,2]
[355971092,1741744245834,-16214.20749549,0.0001,2]
[355971095,1741744832798,1070.72195831,0.00011,15]
[355971102,1741745110261,125423.80372529,0.0002,120]
[355971105,1741745232615,1133.65,8.219e-05,2]
[355971118,1741745431719,-220.61,8.974e-05,2]
[355971119,1741745431729,-444.53,8.979e-05,2]
[355971120,1741745431739,-209.12,8.987e-05,2]
[355971121,1741745431748,-457.31,8.991e-05,2]
[355971122,1741745431757,-279.33,8.995e-05,2]
[355971123,1741745431766,-165.73,9.003e-05,2]
[355971124,1741745431776,-1000.0,9.006e-05,2]
[355971125,1741745431785,-200.0,9.007e-05,2]
[355971126,1741745431794,-250.0,9.013e-05,2]
[355971127,1741745431803,-192.711,9.646e-05,2]
[355971128,1741745431813,-299.638,9.646e-05,2]
[355971129,1741745431822,-250.0,9.854e-05,2]
[355971130,1741745431832,-150.0,9.871e-05,2]
[355971131,1741745431841,-150.0,9.897e-05,2]
[355971132,1741745431850,-1859.426,9.898e-05,2]
[355971133,1741745431859,-178.937,9.898e-05,2]
[355971134,1741745431868,-1000.0,9.898e-05,2]
[355971135,1741745431877,-6714.1816,9.898e-05,2]
[355971136,1741745431895,-387.0,9.898e-05,2]
[355971137,1741745431906,-11691.5312,9.898e-05,2]
[355971138,1741745431915,-11600.5658,9.898e-05,2]
[355971139,1741745431924,-319.8422,9.898e-05,2]
[355971140,1741745431933,-2500.0,9.898e-05,2]
[355971141,1741745431942,-1000.0,9.899e-05,2]
[355971142,1741745431952,-5000.0,9.9e-05,2]
[355971143,1741745431961,-441.87,9.9e-05,2]
[355971144,1741745431970,-778.86,9.9e-05,2]
[355971145,1741745431979,-441.87,9.9e-05,2]
[355971146,1741745431988,-778.86,9.9e-05,2]
[355971147,1741745431997,-778.86,9.9e-05,2]
[355971148,1741745432006,-441.87,9.9e-05,2]
[355971149,1741745432015,-424.62,9.9e-05,2]
[355971150,1741745432024,-1153.0,9.9e-05,2]
[355971151,1741745432033,-488.82946122,9.914e-05,2]
[355971152,1741745432043,-500.0,9.95e-05,2]
[355971153,1741745432052,-500.0,9.95e-05,2]
[355971154,1741745432062,-500.0,9.95e-05,2]
[355971155,1741745432072,-500.0,9.95e-05,2]
[355971156,1741745432082,-500.0,9.95e-05,2]
[355971157,1741745432091,-470.0733,9.95e-05,2]
[355971158,1741745432101,-440.22,9.95e-05,2]
[355971159,1741745432110,-778.86,9.95e-05,2]
[355971160,1741745432119,-441.87,9.95e-05,2]
[355971161,1741745432128,-882.38,9.97e-05,2]
[355971162,1741745432138,-40.30834839,9.97e-05,2]
[355971163,1741745432157,-1661.83165161,9.97e-05,2]
[355971164,1741745432168,-882.28,9.97e-05,2]
[355971165,1741745432179,-4.08112473,9.973e-05,2]
[355971166,1741745432197,-496.05467852,9.973e-05,2]
[355971167,1741745432207,-240.95640148,9.973e-05,2]
[355971168,1741745432231,-259.90275931,9.973e-05,2]
[355971169,1741745432241,-152.20951608,9.973e-05,2]
[355971170,1741745432251,-150.28256085,9.973e-05,2]
[355971171,1741745432262,-525.9,9.998e-05,2]
[355971172,1741745432271,-12.70516376,9.998e-05,2]
[355971181,1741745437793,-927.935,9.899e-05,2]
[355971182,1741745437803,-500.0,9.998e-05,2]
[355971183,1741745437812,-500.0,9.998e-05,2]
[355971184,1741745437822,-500.0,9.998e-05,2]
[355971185,1741745437831,-505.52595311,9.998e-05,2]
[355971186,1741745437841,-500.0,9.998e-05,2]
[355971188,1741745437850,-500.0,9.998e-05,2]
[355971190,1741745437859,-241.89816525,9.998e-05,2]
[355971192,1741745437871,-264.18376431,9.998e-05,2]
[355971194,1741745437880,-500.0,9.998e-05,2]
[355971196,1741745437889,-335.44221383,9.998e-05,2]
[355971199,1741745437907,-171.00477052,9.998e-05,2]
[355971200,1741745437917,-262.48701755,9.998e-05,2]
[355971201,1741745437928,-237.51298245,9.998e-05,2]
[355971202,1741745437937,-500.0,9.998e-05,2]
[355971203,1741745437946,-500.0,9.998e-05,2]
[355971204,1741745437956,-500.0,9.998e-05,2]
[355971205,1741745437965,-500.0,9.998e-05,2]
[355971206,1741745437974,-500.0,9.998e-05,2]
[355971207,1741745437983,-500.0,9.998e-05,2]
[355971208,1741745437992,-553.87,9.998e-05,2]
[355971209,1741745438001,-137.2078846,9.998e-05,2]
[355971210,1741745438012,-455.3021154,9.998e-05,2]
[355971211,1741745438021,-203.17631819,9.998e-05,2]
[355971212,1741745438040,-296.82368181,9.998e-05,2]
[355971213,1741745438050,-734.79,9.998e-05,2]
[355971214,1741745438060,-627.33,9.998e-05,2]
[355971215,1741745438069,-500.0,9.998e-05,2]
[355971216,1741745438079,-500.0,9.998e-05,2]
[355971217,1741745438089,-548.11,9.998e-05,2]
[355971218,1741745438098,-4.86631767,9.998e-05,2]
[355971223,1741745439790,-537.81368233,9.998e-05,2]
[355971224,1741745439801,-500.0,9.998e-05,2]
[355971225,1741745439811,-718.0,9.998e-05,2]
[355971226,1741745439821,-507.17365017,9.998e-05,2]
[355971227,1741745439830,-550.81,9.998e-05,2]
[355971228,1741745439840,-500.0,9.998e-05,2]
[355971229,1741745439850,-505.31727955,9.998e-05,2]
[355971230,1741745439860,-380.88538795,9.998e-05,2]
[355971231,1741745439878,-119.11461205,9.998e-05,2]
[355971232,1741745439888,-569.19,9.998e-05,2]
[355971233,1741745439900,-500.0,9.998e-05,2]
[355971234,1741745439910,-19.91947021,9.998e-05,2]
[355971235,1741745439922,-290.75500001,9.998e-05,2]
[355971236,1741745439933,-290.11804999,9.998e-05,2]
[355971237,1741745439963,-35.77747979,9.998e-05,2]
[355971238,1741745439973,-500.0,9.998e-05,2]
[355971239,1741745439982,-691.0,9.998e-05,2]
[355971240,1741745439992,-570.59357454,9.998e-05,2]
[355971241,1741745440002,-500.0,9.998e-05,2]
[355971242,1741745440011,-506.92,9.998e-05,2]
[355971243,1741745440021,-500.0,9.998e-05,2]
[355971244,1741745440030,-500.0,9.998e-05,2]
[355971245,1741745440040,-538.53288152,9.998e-05,2]
[355971246,1741745440049,-641.15898415,9.998e-05,2]
[355971247,1741745440058,-500.0,9.998e-05,2]
[355971248,1741745440068,-650.08,9.998e-05,2]
[355971249,1741745440078,-500.0,9.998e-05,2]
[355971250,1741745440087,-500.0,9.998e-05,2]
[355971251,1741745440097,-500.0,9.998e-05,2]
[355971252,1741745440106,-500.0,9.998e-05,2]
[355971253,1741745440115,-500.0,9.998e-05,2]
[355971254,1741745440125,-500.0,9.998e-05,2]
[355971255,1741745440134,-611.48,9.998e-05,2]
[355971256,1741745440145,-500.0,9.998e-05,2]
[355971257,1741745440155,-500.0,9.998e-05,2]
[355971258,1741745440166,-500.0,9.998e-05,2]
[355971259,1741745440178,-504.95002047,9.998e-05,2]
[355971260,1741745440187,-500.0,9.998e-05,2]
[355971261,1741745440197,-500.0,9.998e-05,2]
[355971262,1741745440206,-500.0,9.998e-05,2]
[355971263,1741745440219,-545.3,9.998e-05,2]
[355971264,1741745440228,-222.45020163,9.998e-05,2]
[355971267,1741745440573,-277.54979837,9.998e-05,2]
[355971268,1741745440582,-500.0,9.998e-05,2]
[355971269,1741745440592,-500.0,9.998e-05,2]
[355971270,1741745440602,-500.0,9.998e-05,2]
[355971271,1741745440612,-500.0,9.998e-05,2]
[355971272,1741745440621,-570.66,9.998e-05,2]
[355971273,1741745440630,-505.64204375,9.998e-05,2]
[355971274,1741745440640,-500.0,9.998e-05,2]
[355971275,1741745440650,-500.0,9.998e-05,2]
[355971276,1741745440659,-500.0,9.998e-05,2]
[355971277,1741745440669,-500.0,9.998e-05,2]
[355971278,1741745440678,-500.0,9.998e-05,2]
[355971279,1741745440687,-438.83755457,9.998e-05,2]
[355971280,1741745440697,-600.42,9.998e-05,2]
[355971281,1741745440706,-518.41284039,9.998e-05,2]
[355971282,1741745440715,-500.0,9.998e-05,2]
[355971283,1741745440725,-500.0,9.998e-05,2]
[355971284,1741745440734,-653.28,9.998e-05,2]
[355971285,1741745440743,-500.0,9.998e-05,2]
[355971286,1741745440752,-500.0,9.998e-05,2]
[355971287,1741745440762,-500.0,9.998e-05,2]
[355971288,1741745440771,-500.0,9.998e-05,2]
[355971289,1741745440781,-500.0,9.998e-05,2]
[355971290,1741745440790,-500.0,9.998e-05,2]
[355971291,1741745440799,-500.0,9.998e-05,2]
[355971292,1741745440808,-500.0,9.998e-05,2]
[355971293,1741745440818,-500.0,9.998e-05,2]
[355971294,1741745440827,-505.23607664,9.998e-05,2]
[355971295,1741745440837,-500.0,9.998e-05,2]
[355971296,1741745440847,-500.0,9.998e-05,2]
[355971297,1741745440857,-500.0,9.998e-05,2]
[355971298,1741745440867,-500.0,9.998e-05,2]
[355971299,1741745440876,-721.96,9.998e-05,2]
[355971300,1741745440885,-506.43513787,9.998e-05,2]
[355971301,1741745440895,-500.0,9.998e-05,2]
[355971302,1741745440904,-500.0,9.998e-05,2]
[355971303,1741745440914,-500.0,9.998e-05,2]
[355971304,1741745440923,-500.0,9.998e-05,2]
[355971305,1741745440932,-500.0,9.998e-05,2]
[355971306,1741745440942,-500.0,9.998e-05,2]
[355971307,1741745440951,-500.0,9.998e-05,2]
[355971308,1741745440960,-726.23,9.998e-05,2]
[355971309,1741745440969,-500.0,9.998e-05,2]
[355971310,1741745440978,-500.0,9.998e-05,2]
[355971311,1741745440988,-500.0,9.998e-05,2]
[355971312,1741745440997,-748.81,9.998e-05,2]
[355971313,1741745441007,-500.0,9.998e-05,2]
[355971314,1741745441016,-1048.53,9.998e-05,2]
[355971315,1741745441025,-500.0,9.998e-05,2]
[355971316,1741745441034,-500.0,9.998e-05,2]
[355971317,1741745441043,-481.00922198,9.998e-05,2]
[355971318,1741745441052,-500.0,9.998e-05,2]
[355971319,1741745441062,-500.0,9.998e-05,2]
[355971320,1741745441071,-631.0,9.998e-05,2]
[355971321,1741745441080,-669.29,9.998e-05,2]
[355971322,1741745441089,-774.52,9.998e-05,2]
[355971323,1741745441098,-650.71,9.998e-05,2]
[355971324,1741745441107,-500.0,9.998e-05,2]
[355971325,1741745441116,-528.03,9.998e-05,2]
[355971326,1741745441126,-500.0,9.998e-05,2]
[355971327,1741745441135,-500.0,9.998e-05,2]
[355971328,1741745441144,-537.37438959,9.998e-05,2]
[355971329,1741745441153,-508.86303817,9.998e-05,2]
[355971330,1741745441162,-500.0,9.998e-05,2]
[355971331,1741745441174,-520.78233243,9.998e-05,2]
[355971332,1741745441185,-760.81,9.998e-05,2]
[355971333,1741745441194,-554.68,9.998e-05,2]
[355971334,1741745441203,-500.0,9.998e-05,2]
[355971335,1741745441212,-500.0,9.998e-05,2]
[355971336,1741745441222,-752.07,9.998e-05,2]
[355971337,1741745441232,-500.0,9.998e-05,2]
[355971338,1741745441241,-500.0,9.998e-05,2]
[355971339,1741745441251,-500.0,9.998e-05,2]
[355971340,1741745441260,-662.94,9.998e-05,2]
[355971341,1741745441270,-500.0,9.998e-05,2]
[355971342,1741745441279,-500.0,9.998e-05,2]
[355971343,1741745441288,-571.37,9.998e-05,2]
[355971344,1741745441297,-920.13,9.998e-05,2]
[355971345,1741745441306,-500.0,9.998e-05,2]
[355971346,1741745441315,-530.09865755,9.998e-05,2]
[355971347,1741745441325,-500.0,9.998e-05,2]
[355971348,1741745441334,-500.0,9.998e-05,2]
[355971349,1741745441345,-934.87,9.998e-05,2]
[355971350,1741745441354,-500.0,9.998e-05,2]
[355971351,1741745441363,-575.1,9.998e-05,2]
[355971352,1741745441372,-500.0,9.998e-05,2]
[355971353,1741745441381,-531.68,9.998e-05,2]
[355971354,1741745441391,-500.0,9.998e-05,2]
[355971355,1741745441400,-510.66883818,9.998e-05,2]
[355971356,1741745441410,-500.0,9.998e-05,2]
[355971357,1741745441419,-533.58674688,9.998e-05,2]
[355971358,1741745441428,-1136.13,9.998e-05,2]
[355971359,1741745441437,-681.26,9.998e-05,2]
[355971360,1741745441446,-1019.12,9.998e-05,2]
[355971361,1741745441455,-922.01,9.998e-05,2]
[355971362,1741745441465,-500.0,9.998e-05,2]
[355971363,1741745441474,-500.0,9.998e-05,2]
[355971364,1741745441483,-500.0,9.998e-05,2]
[355971365,1741745441492,-500.0,9.998e-05,2]
[355971366,1741745441501,-500.0,9.998e-05,2]
[355971367,1741745441510,-562.72,9.998e-05,2]
[355971368,1741745441519,-500.0,9.998e-05,2]
[355971369,1741745441528,-500.0,9.998e-05,2]
[355971370,1741745441538,-1514.21,9.998e-05,2]
[355971371,1741745441547,-500.0,9.998e-05,2]
[355971372,1741745441556,-674.34,9.998e-05,2]
[355971373,1741745441565,-500.0,9.998e-05,2]
[355971374,1741745441574,-181.55685217,9.999e-05,3]
[355971375,1741745441584,-500.0,9.999e-05,2]
[355971376,1741745441595,-500.0,9.999e-05,2]
[355971377,1741745441603,-500.0,9.999e-05,2]
[355971378,1741745441613,-639.78,9.999e-05,2]
[355971379,1741745441622,-500.0,9.999e-05,2]
[355971380,1741745441631,-656.77,9.999e-05,2]
[355971381,1741745441641,-500.0,9.999e-05,2]
[355971382,1741745441650,-500.0,9.999e-05,2]
[355971383,1741745441659,-544.47,9.999e-05,2]
[355971384,1741745441668,-706.35,9.999e-05,2]
[355971385,1741745441678,-500.0,9.999e-05,2]
[355971386,1741745441688,-500.0,9.999e-05,2]
[355971387,1741745441697,-500.0,9.999e-05,2]
[355971388,1741745441706,-500.0,9.999e-05,2]
[355971389,1741745441715,-500.0,9.999e-05,2]
[355971390,1741745441724,-243.72682941,9.999e-05,2]
[355971391,1741745441734,-500.0,9.999e-05,2]
[355971392,1741745441743,-549.09104782,9.999e-05,2]
[355971393,1741745441752,-746.54,9.999e-05,2]
[355971394,1741745441762,-500.0,9.999e-05,2]
[355971395,1741745441771,-625.71,9.999e-05,2]
[355971396,1741745441779,-687.84,9.999e-05,2]
[355971397,1741745441788,-500.0,9.999e-05,2]
[355971398,1741745441797,-500.0,9.999e-05,2]